Cogmind - Beta 14 @@@ ROGUE MODE // 2024.08.27 @ 02:58:30 Player: Abkaal Result: Destroyed by D-53 Grenadier with Mini Grenade Launcher Performance ------------- Evolutions (0) 0 Regions Visited (2) 400 Robots Destroyed (32) 160 Value Destroyed (899) 899 Prototype IDs (2) 40 Alien Tech Used (0) 0 Bonus (0) 0 TOTAL SCORE: 1499 Bonus ------- None Cogmind --------- Core Integrity 0/250 Matter 279/300 Energy 160/160 System Corruption 2% Temperature Cool (2) Movement Treading (320) Ox2 Location -10/Mines Parts ------- > --- POWER (1) -------- Light Nuclear Core > --- PROPULSION (2) --- Light Treads Light Treads > --- UTILITY (2) ------ Huge Storage Unit > --- WEAPON (2) ------- Light Assault Rifle > --- INVENTORY (25) --- Ion Engine Light Ion Engine Light Treads Light Treads Flight Unit Flight Unit Flight Unit Improved Heat Sink Small Storage Unit Signal Interpreter Improved Terrain Scanner Targeting Computer Targeting Computer ECM Suite ECM Suite Power Shielding Light Armor Plating Light Armor Plating Heavy Assault Rifle Heavy Assault Rifle Light Cannon Light Cannon Hammer Peak State ------------ > --- POWER ------------ Light Nuclear Core > --- PROPULSION ------- Wheel Wheel > --- UTILITY ---------- Huge Storage Unit Light Armor Plating > --- WEAPON ----------- Light Assault Rifle Light Cannon > --- INVENTORY -------- Ion Engine Light Ion Engine Light Treads Light Treads Light Treads Light Treads Flight Unit Flight Unit Flight Unit Improved Heat Sink Small Storage Unit Large Storage Unit Signal Interpreter Improved Terrain Scanner Targeting Computer ECM Suite ECM Suite Light Armor Plating Light Armor Plating Heavy Assault Rifle Heavy Assault Rifle Light Cannon Light Cannon Mining Laser Hammer [Rating: 12] Favorites ----------- Power Light Nuclear Core Engine Light Ion Engine Power Core Light Nuclear Core Propulsion Wheel Treads Light Treads Wheel Wheel Utility Light Armor Plating Device Heat Sink Storage Huge Storage Unit Protection Light Armor Plating Weapon Light Assault Rifle Energy Gun Particle Gun Ballistic Gun Light Assault Rifle Ballistic Cannon Light Cannon Build | -11 -10 -10 ------- Run | Yrd Mat Min Slots Evolved . | . . . Power . | . . . Propulsion . | . . . Utility . | . . . Weapon . | . . . Parts Attached 35 | 7 23 5 Power 6 | 1 5 . Engine 5 | 1 4 . Core 1 | . 1 . Reactor . | . . . Propulsion 10 | 2 5 3 Treads 2 | . . 2 Leg . | . . . Wheel 8 | 2 5 1 Hover . | . . . Flight . | . . . Utility 11 | 2 8 1 Device 2 | 1 1 . Storage 4 | 1 3 . Processor . | . . . Hackware . | . . . Protection 5 | . 4 1 Artifact . | . . . Weapon 8 | 2 5 1 Energy Gun 3 | 1 2 . Energy Cannon . | . . . Ballistic Gun 4 | 1 2 1 Ballistic Cannon 1 | . 1 . Launcher . | . . . Special Weapon . | . . . Impact Weapon . | . . . Slashing Weapon . | . . . Piercing Weapon . | . . . Special Melee Weapon . | . . . Unidentified Prototypes . | . . . Parts Lost 11 | . 6 5 Power 1 | . 1 . Propulsion 5 | . 2 3 Utility 2 | . 1 1 Weapon 3 | . 2 1 Highest Loss Streak 4 | . 2 4 To Critical Strikes . | . . . Average Slot Usage (%) 94 | . 92 99 Engine 3 | . 5 . Core 10 | . 8 14 Wheel 27 | . 27 27 Device 4 | . 6 . Storage 14 | . 14 14 Protection 8 | . 6 14 Energy Gun 5 | . 8 . Ballistic Gun 12 | . 11 14 Ballistic Cannon 5 | . 1 14 Peak Build Rating 12 | 9 11 12 Average Rating 9 | 5 9 11 On Entrance 6 | . 9 11 Naked Turns . | . . . Heaviest Build 92 | 13 92 92 Greatest Support 26 | 26 26 20 Greatest Overweight (x) 4 | 1 4 4 Average Overweight (x) 2 | . 1 4 Largest Inventory Capacity 25 | 8 25 25 Average Capacity 18 | 7 16 25 Most Carried 25 | 8 22 25 Average Carried 16 | 5 13 23 Final Capacity 25 | 8 25 25 Final Carried 23 | 8 22 23 Class Distribution -------------------- 85% | Mutant 14% | Scavenger-Mutant Dominant Class ---------------- Mutant | -10/Materials Mutant | -10/Mines Resources | -11 -10 -10 ----------- Run | Yrd Mat Min Matter Collected 763 | 288 375 100 Remotely . | . . . Salvage Created 1031 | 53 765 213 Parts 58 | 5 45 8 Haulers Intercepted 2 | . 2 . Recyclers Shooed 2 | . 2 . Parts Field Recycled . | . . . Retrieved Matter . | . . . Parts Self-Destructed . | . . . Prevented . | . . . Kills | -11 -10 -10 ------- Run | Yrd Mat Min Combat Hostiles Destroyed 23 | . 16 7 Guns 15 | . 13 2 Cannons 6 | . 1 5 AOE 1 | . 1 . Classes Destroyed 8 | 1 4 3 Worker 1 | . 1 . Tunneler 3 | 2 . 1 Hauler 2 | . 2 . Watcher 3 | . 3 . Swarmer 3 | . . 3 Grunt 18 | . 16 2 Sentry 1 | . . 1 Demolisher 1 | . . 1 Best Kill Streak 3 | 2 3 3 Combat Bots Only 3 | . 2 3 Max Kills in Single Turn 1 | 1 1 1 Gunslinging . | . . . Exploded 1 | . 1 . Melee . | . . . Uniques/NPCs Destroyed . | . . . Combat | -11 -10 -10 -------- Run | Yrd Mat Min Hostile Shots Fired 117 | . 79 38 Missed 37 | . 26 11 Damage Taken 1303 | . 748 555 Core 256 | . 159 97 Absorbed by Shields . | . . . Core Remaining (%) 100 | 100 . . Volleys Fired 133 | 6 110 17 Largest 2 | 2 2 2 Hottest 85 | 70 85 55 Shots Fired 217 | 12 171 34 Gun 199 | 12 169 18 Cannon 18 | . 2 16 Launcher . | . . . Special . | . . . Kinetic 122 | 6 82 34 Thermal 95 | 6 89 . Explosive . | . . . Electromagnetic . | . . . Robot Hit Streak 11 | 3 7 11 Robot Miss Streak 6 | 2 6 1 Penetration Max . | . . . Secondary Targets 2 | . 2 . Max Gunslinging Chain 1 | . 1 . Shots Hit Robots 130 | 6 96 28 Core Hits 62 | 2 45 15 Critical Kills . | . . . Critical Parts Destroyed . | . . . Critical Strikes 7 | . 7 . Burn 7 | . 7 . Melee Attacks . | . . . Impact . | . . . Slashing . | . . . Piercing . | . . . Sneak Attacks . | . . . Combat Hostiles . | . . . Follow-up Attacks . | . . . Damage Inflicted 1797 | 67 1374 356 Guns 1436 | 67 1239 130 Cannons 241 | . 22 219 Explosions 112 | . 112 . Melee . | . . . Ramming 8 | . 1 7 Kinetic 939 | 42 548 349 Thermal 850 | 25 825 . Explosive . | . . . Electromagnetic . | . . . Impact . | . . . Slashing . | . . . Piercing . | . . . Highest Corruption 2 | . 2 2 Average Corruption 1 | . 1 2 Corruption Purged . | . . . Corruption Blocked . | . . . Effects 9 | . 4 5 Message Errors 3 | . 2 1 Matter Fused 2 | . . 2 Energy Discharges 1 | . 1 . Misfires 1 | . . 1 Alerts 1 | . . 1 Weapon Failures 1 | . 1 . Overload Shots . | . . . Overflow Damage 49 | . 49 . Projectiles . | . . . Explosions 49 | . 49 . Melee . | . . . Knockbacks 3 | . . 3 Impact 1 | . . 1 Kinetic 2 | . . 2 Secondary . | . . . Self-Inflicted Damage 70 | . 67 3 Shots 1 | . 1 . Rammed 2 | . 1 1 Targets Rammed 2 | . 1 1 Kicked . | . . . Crushed . | . . . Highest Temperature 345 | 56 345 171 Average Temperature 80 | 25 90 51 Received Heat Transfer 501 | . 369 132 Siege Activations . | . . . Robots Corrupted . | . . . Combat Hostiles . | . . . Parts Fried . | . . . Impact Corruptions . | . . . Robots Melted 1 | . 1 . Combat Hostiles 1 | . 1 . Parts Melted 7 | . 7 . Heat Transferred 2492 | 74 2418 . Parts Sabotaged . | . . . Parts Stolen . | . . . Parts Stripped . | . . . Power Chain Reactions . | . . . Alert | -11 -10 -10 ------- Run | Yrd Mat Min Peak Influence 238 | 10 238 205 Initial 42 | . 6 42 Average 115 | 4 130 101 Maximum Alert Level 1 | . 1 1 Low Security (%) 89 | 100 84 99 Level 1 10 | . 15 . Level 2 . | . . . Level 3 . | . . . Level 4 . | . . . Level 5 . | . . . High Security . | . . . Max Security . | . . . Squads Dispatched 4 | . 4 . Investigation 4 | . 4 . Extermination . | . . . Reinforcement . | . . . Assault . | . . . Garrison . | . . . Intercept . | . . . Searches Triggered . | . . . Construction Impeded . | . . . Haulers Reinforced . | . . . Active Scanning Responses . | . . . Cargo Convoy Interrupts . | . . . Stealth | -11 -10 -10 --------- Run | Yrd Mat Min Distress Signals 2 | . 2 . Communications Jammed . | . . . Distress Signals . | . . . Times Spotted 36 | . 27 9 Peak Tracking Total 4 | . 4 2 Tactical Retreats 4 | . 3 1 Traps | -11 -10 -10 ------- Run | Yrd Mat Min Traps Triggered 5 | . 5 . Indirectly . | . . . Trap Hack Attempts . | . . . Triggered . | . . . Disarmed . | . . . Reprogrammed . | . . . Reused 3 | . . 3 Traps Extracted . | . . . Installed 3 | . . 3 Triggered 3 | . . 3 Most Traps Carried 3 | . . 3 Machines | -11 -10 -10 ---------- Run | Yrd Mat Min Machines Disabled 2 | . 2 . Max in Single Turn 2 | . 2 . Machines Repaired . | . . . Machines Dismantled . | . . . Machines Sabotaged . | . . . Overloaded Fab Kills . | . . . Hacking | -11 -10 -10 --------- Run | Yrd Mat Min Machines Accessed 9 | . 9 . Terminals 6 | . 6 . Fabricators . | . . . Repair Stations 1 | . 1 . Recycling Units 2 | . 2 . Scanalyzers . | . . . Garrison Access . | . . . Total Hacks 25 | . 25 . Successful 9 | . 9 . Failed 15 | . 15 . Catastrophic . | . . . Database Lockouts 1 | . 1 . Manual 9 | . 9 . Terminals 18 | . 18 . Fabricators . | . . . Repair Stations 2 | . 2 . Recycling Units 5 | . 5 . Scanalyzers . | . . . Garrison Access . | . . . Terminal Hacks 7 | . 7 . Robot Analysis 3 | . 3 . Prototype ID Bank 1 | . 1 . Branch Access Points 1 | . 1 . Emergency Access Points 1 | . 1 . Hauler Manifests 1 | . 1 . Fabricator Hacks . | . . . Repair Station Hacks . | . . . Recycling Unit Hacks 2 | . 2 . Report Inventory 2 | . 2 . Scanalyzer . | . . . Garrison Access Hacks . | . . . Unauthorized Hacks . | . . . Terminals . | . . . Fabricators . | . . . Repair Stations . | . . . Recycling Units . | . . . Scanalyzers . | . . . Garrison Access . | . . . Data Cores Recovered . | . . . Used . | . . . Hacking Detections 9 | . 9 . Full Trace Events 6 | . 6 . Feedback Events 2 | . 2 . Corruption 2 | . 2 . Feedback Blocked . | . . . Robot Schematics Acquired . | . . . Robots Built . | . . . Authchips . | . . . Time . | . . . Total Robot Build Rating . | . . . Part Schematics Acquired . | . . . Parts Built . | . . . Authchips . | . . . Time . | . . . Total Part Build Rating . | . . . Parts Repaired . | . . . Time . | . . . Parts Recycled . | . . . Recycled Matter . | . . . Retrieved Matter . | . . . Retrieved Components . | . . . Parts Scanalyzed . | . . . Part Schematics Acquired . | . . . Parts Damaged . | . . . Bothacking | -11 -10 -10 ------------ Run | Yrd Mat Min Used RIF Installer . | . . . Robots Hacked . | . . . Non-combat . | . . . Combat . | . . . Robot Hacks Applied . | . . . Relay Couplers Released . | . . . Fabnet Peak Effective % . | . . . Robots Rewired . | . . . Allies Hacked . | . . . Hacks Repelled . | . . . Allies | -11 -10 -10 -------- Run | Yrd Mat Min Total Allies . | . . . Largest Group . | . . . Highest-Rated Group . | . . . Highest-Rated Ally . | . . . Total Orders . | . . . Ally Attacks . | . . . Total Damage . | . . . Kills . | . . . Allies Corrupted . | . . . Allies Melted . | . . . Intel | -11 -10 -10 ------- Run | Yrd Mat Min Robot Analysis Total 3 | . 3 . Derelict Logs Recovered 2 | . . 2 Drone Launches . | . . . Drone Recoveries . | . . . Exploration | -11 -10 -10 ------------- Run | Yrd Mat Min Turns Passed 2006 | 98 1269 639 Spaces Moved 1231 | 69 764 398 Core 6 | 6 . . Treads . | . . . Legs . | . . . Wheels 1225 | 63 764 398 Hover . | . . . Flight . | . . . Fastest Speed 50 | 50 90 140 Average Speed 118 | 88 110 140 Slowest Speed 140 | 100 140 140 Overloaded Moves . | . . . Propulsion Burnouts . | . . . Robots Hopped . | . . . Cave-ins Triggered . | . . . Exploration Rate (%) 42 | 3 89 36 Regions Visited 2 Branch Regions 1 Pre-discovered Areas . | . . . Known Exits Taken 1 | . 1 . Unknown Exits Taken 1 | 1 . . Scrap Searched . | . . . Spaces Dug . | . . . Terrain Destroyed 19 | . 19 . Melee . | . . . Projectile . | . . . AOE 19 | . 19 . Terrain Rammed . | . . . Walls Destroyed . | . . . Machines Disabled . | . . . Actions | -11 -10 -10 --------- Run | Yrd Mat Min Total 1574 | 90 1029 455 Wait 104 | . 93 11 Move 1229 | 68 763 398 Hop . | . . . Pick Up 43 | 9 23 11 Fast Attach 17 | 6 11 . Attach 7 | 1 3 3 Detach 1 | . 1 . Swap 11 | . 9 2 Drop 24 | . 15 9 Fire 133 | 6 110 17 Melee . | . . . Ram 2 | . 1 1 Kick . | . . . Crush . | . . . Escape Stasis . | . . . Rewire . | . . . Trap 3 | . . 3 Miscellaneous . | . . . Route ------- -11/Scrapyard -10/Materials (discovered 3 exits: [*Mat x2] / *Min) -10/Mines (discovered 1 exit: [*Mat]) History --------- Turn | Location | Event 23 | -11/Scrapyard | Discovered new exit (range 16) 99 | -11/Scrapyard | Entered Materials 304 | -10/Materials | Build established: Mutant 447 | -10/Materials | Discovered new exit (range 4) 654 | -10/Materials | Central database locked down 902 | -10/Materials | Discovered new exit (range 11) 914 | -10/Materials | Core integrity fell below 50% 960 | -10/Materials | Identified exit to Mines 1368 | -10/Materials | Entered Mines 1418 | -10/Mines | Found a hidden stash of uninstalled traps 1419 | -10/Mines | Assembled infested the area 1777 | -10/Mines | Core integrity fell below 20% 1792 | -10/Mines | Discovered new exit (range 12) 2007 | -10/Mines | Destroyed by D-53 Grenadier with Mini Grenade Launcher Last Messages --------------- 01863_ A bubble of electromagnetic force engulfs the area. 01863_ Y-45 Defender destroyed. 01870_ U-05 Engineer lays Concrete. 01871_ Y-45 Defender destroyed. 01872_ Acquired 34 matter. 01910_ Acquired Corrupted Hvy. Assault Rifle. 01918_ RNTQINSSRL6HQWT 01946_ Dropped Lrg. Storage Unit. 01947_ Acquired Power Shielding. 01949_ Dropped Mining Laser. 01950_ Acquired Targeting Computer. 01981_ K-01 Serf collects debris. 01995_ Wheel destroyed. 01998_ D-53 Grenadier destroyed. 02002_ K-01 Serf collects debris. 02003_ Wheel destroyed. 02005_ Lgt. Cannon destroyed. 02005_ Lgt. Armor Plating destroyed. Map ----- +----------------------------------------------------+ | ???????????????????????????????????????????????? | | ???????????????????????????????????????????????? | | ???????????????????????????????????????????????? | | ???????????????????????????????????????????????? | | ???????????????????????????????????????????????? | | ???????????????????????????????????????????????? | | ???????# ??????????????????????????????????????? | | ???????# ?????????????????????????????????????? | | ????????? ???????????????????????????????????? | | ??????????? ######????????????????????????????? | | ????????????? #????????????????????????????? | | ??????????????? #????????????????????????????? | | ????????????????#=#????????????????????????????? | | ????????????????#=###??????######??????????????? | | ????????????????#%% #?????##"/["##?????????????? | | ????????????????###%#?????#"" |""#?????????????? | | ??????????????????#!#?????# ! #?????????????? | | ??????????????????# #?????## ##?????????????? | | ??????????????????# #?????###++###?????????????? | | ??????????????????# #?????# #?????????????? | | ??????????????????#%####### ###???????????? | | ??????????????????#d# # #???????????? | | ??????????????##### #???????????? | | ??????????????# k%* #???????????? | | ??????????????# ### #???????????? | | ??????????????# #?# @ #???????????? | | ??????????????# #?# #???????????? | | ??????????????# #?## #???????????? | | ??????????????# #??# < #?????####??? | | ?????????????## #??## # #???### ##?? | | ????????????## ##??### #?### #?? | | ????????????# ##???################ ##? | | ????????????# ##????????????????# ## | | ????????????## ##???????????????# | | ?????????????## #############???## | | ?????????????## #????##### | | ?????????????# #????????## | | ?????????????# ########### ########### | | ????????????## #####?????????# | | ???????????## ##???????????############# | | ??????????## ###?????????????????????## | | ?????????## ##?????????????????????# | | ?????????# #?????????????????????# | | ????????## ## ##????????????????????# | | ??????### ##### ##???????????????????## | | ?????## #####???## ##???????????????????## | | ?????# ##????????## ##???????????????????### | | ?????# ##??????????## ##????????????????????? | | ?????# ##???????????# ###???????????????#### | | ?????# #???????????# ##??????????????# | +----------------------------------------------------+ Best States ------------- Heat Dissipation 35 Energy Generation 14 Energy Capacity 250 Matter Stores 300 Matter Capacity 300 Sight Range 16 Terrain Scan Range 16 Terrain Scan Density 10 Armor Coverage 150 Evasion (%) 42 Item Schematics ----------------- None Robot Schematics ------------------ None Fabricated ------------ Nothing Alien Tech Used ----------------- None Achievements -------------- None Challenges ------------ None Game ------ Seed DrainedSpikedBlaster Manual? 0 Play Time 00:21:31 Cumulative 47.3 hours Start 2024.08.27 @ 02:41:07 End 2024.08.27 @ 02:58:30 Sessions 1 Manual Loads 0 Difficulty Rogue Special Mode None Game No. 32 Rogue 32 Adventurer 0 Explorer 0 Win Type - Total 0 Types 0/0/0/0/0/0/0/0/0 Lore% 21 Gallery% 37 Achievement% 34 Wizard Run 0 Options --------- Layout 2 ASCII 0 Keyboard 1 Movement Numpad Keybinds 0 Fullscreen 1 Font 24/Smallcaps Map View 50x44 Zoom Use 0% Tactical HUD 1 Map Filters NONE Filters NONE Steam 1 RUN: 2aaea7f7-e864-4e3a-b977-545b89c39619